bitfinex-derivatives/quotes_SOLF0:USTF0_20250311
["timestamp","ask_amount","ask_price","bid_price","bid_amount"]
[1741723799825,0.05270259,127.58,127.55,7.8930935]
[1741723800026,0.05270259,127.58,127.55,0.0508935]
[1741723800729,7.8416,127.56,127.55,0.0508935]
[1741723806035,0.05270259,127.58,127.56,7.8415]
[1741723806230,0.05270259,127.58,127.55,0.0508935]
[1741723806735,7.8416,127.56,127.55,0.0508935]
[1741723808229,0.05270259,127.58,127.49,4.0851]
[1741723808230,17.90870003,127.57,127.49,4.0851]
[1741723808428,17.90870003,127.57,127.47,2.0187]
[1741723808429,17.90870003,127.53,127.47,2.0187]
[1741723808736,17.90870003,127.53,127.47,35.2187]
[1741723809034,17.90870003,127.53,127.47,2.0187]
[1741723809228,17.90870003,127.55,127.43,4.1462]
[1741723809229,17.90870003,127.49,127.43,4.1462]
[1741723809423,17.90870003,127.49,127.43,45.1955]
[1741723809735,17.90870003,127.51,127.45,0.05171316]
[1741723809937,17.90870003,127.55,127.46,17.90870003]
[1741723810136,17.90870003,127.55,127.47,33.2]
[1741723811224,17.90870003,127.55,127.5,0.05544199]
[1741723811225,0.05425803,127.52,127.5,0.05544199]
[1741723812031,7.8447,127.51,127.5,0.05544199]
[1741723812226,25.75340003,127.51,127.5,0.05544199]
[1741723813135,0.05425803,127.52,127.5,0.05544199]
[1741723814238,7.8447,127.51,127.5,0.05544199]
[1741723815030,0.05425803,127.52,127.5,0.05544199]
[1741723815433,0.05425803,127.52,127.5,7.90064199]
[1741723815931,0.05425803,127.52,127.5,0.05544199]
[1741723816136,7.8447,127.51,127.5,0.05544199]
[1741723817135,25.75340003,127.51,127.5,0.05544199]
[1741723817730,7.89875803,127.52,127.5,0.05544199]
[1741723818142,0.05425803,127.52,127.5,0.05544199]
[1741723819032,0.05425803,127.52,127.5,51.16414202]
[1741723819236,51.10870003,127.59,127.51,1.963]
[1741723819737,17.90870003,127.57,127.5,33.2]
[1741723819936,7.8438,127.53,127.5,41.0449]
[1741723820341,0.05385093,127.53,127.5,33.25482477]
[1741723820538,0.05385093,127.53,127.52,7.8441]
[1741723820738,0.05385093,127.53,127.5,33.25482477]
[1741723820939,0.05385093,127.53,127.51,7.8447]
[1741723821544,0.05385093,127.53,127.52,7.8441]
[1741723822748,266.5406,127.58,127.55,7.842]
[1741723823246,266.5406,127.58,127.54,33.2]
[1741723823444,266.5406,127.58,127.56,7.8415]
[1741723823843,258.7,127.58,127.56,7.8415]
[1741723824043,258.74754895,127.58,127.56,7.89100027]
[1741723824239,258.74754895,127.58,127.57,7.841]
[1741723824534,258.74754895,127.58,127.56,0.04950027]
[1741723824935,0.04754895,127.58,127.56,0.04950027]
[1741723825443,0.04754895,127.58,127.57,7.841]
[1741723826044,0.04754895,127.58,127.56,0.04950027]
[1741723826045,7.8385,127.62,127.58,7.8399]
[1741723826244,262.9906,127.64,127.56,0.04950027]
[1741723826450,262.9906,127.64,127.55,1.9609]
[1741723827250,7.8389,127.61,127.58,7.8978681]
[1741723828051,7.8389,127.61,127.58,0.0576681]
[1741723828252,7.8389,127.61,127.59,7.8397]
[1741723828952,7.8376,127.63,127.6,7.839]
[1741723829250,7.8376,127.63,127.58,33.18]
[1741723829447,7.8376,127.63,127.6,0.0525888]
[1741723829953,258.78,127.64,127.62,7.8376]
[1741723830250,258.78,127.64,127.6,0.0525888]
[1741723830653,266.6169,127.64,127.6,0.0525888]
[1741723830851,258.78,127.64,127.6,0.0525888]
[1741723831145,7.8385,127.61,127.6,0.0525888]
[1741723831651,258.78,127.64,127.6,0.0525888]
[1741723831847,28.67670593,127.63,127.6,0.0525888]
[1741723832045,28.67670593,127.61,127.55,1.9688]
[1741723832246,7.84,127.59,127.56,7.8415]
[1741723833247,7.8394,127.6,127.57,7.8408]
[1741723833453,0.05088301,127.59,127.57,7.8408]
[1741723834146,0.05088301,127.59,127.58,7.8404]
[1741723835659,0.05088301,127.59,127.58,41.0204]
[1741723839554,0.05088301,127.59,127.58,33.18]
[1741723839950,7.89058301,127.59,127.58,33.18]
[1741723841055,0.05088301,127.59,127.58,33.18]
[1741723841751,0.05088301,127.59,127.58,41.0204]
[1741723842358,258.78,127.64,127.58,33.18]
[1741723842751,1.9522,127.67,127.63,7.8369]
[1741723842951,28.67670593,127.69,127.62,33.16]
[1741723843657,28.67670593,127.69,127.64,0.05024236]
[1741723843851,7.8365,127.65,127.64,0.05024236]
[1741723846859,25.73829479,127.66,127.64,0.05024236]
[1741723847055,17.90269479,127.66,127.64,0.05024236]
[1741723847758,7.8361,127.65,127.64,0.05024236]
[1741723849964,7.8357,127.66,127.64,7.88694236]
[1741723850357,17.90269479,127.68,127.64,0.05024236]
[1741723850660,17.90269479,127.68,127.64,7.88664236]
[1741723850959,17.90269479,127.68,127.64,0.05024236]
[1741723851762,278.69269479,127.7,127.64,0.05024236]
[1741723852262,7.8361,127.65,127.64,0.05024236]
[1741723854166,7.8388,127.61,127.59,33.14]
[1741723854565,17.90269479,127.63,127.59,40.9797]
[1741723854766,7.8382,127.62,127.59,40.9797]
[1741723855164,17.90269479,127.63,127.59,33.14]
[1741723855366,0.04973904,127.62,127.59,0.05202217]
[1741723856465,0.04973904,127.62,127.61,7.8385]
[1741723860373,7.8344,127.68,127.6,17.90269479]
[1741723860573,7.8344,127.68,127.6,19.99019479]
[1741723860765,22.18269479,127.69,127.6,19.99019479]
[1741723860973,9.9772,127.69,127.62,17.90269479]
[1741723861274,2.1433,127.69,127.63,33.14]
[1741723861473,7.8346,127.68,127.65,7.89418451]
[1741723861873,7.8346,127.68,127.65,0.05848451]
[1741723862171,7.8346,127.68,127.65,7.89428451]
[1741723863165,20.04599479,127.69,127.65,0.05848451]
[1741723863772,7.8355,127.66,127.65,0.05848451]
[1741723864280,7.8343,127.68,127.65,7.89448451]
[1741723864874,27.88009479,127.69,127.66,7.8351]
[1741723865075,20.04599479,127.69,127.65,0.05848451]
[1741723865477,7.8345,127.68,127.66,7.8354]
[1741723866175,20.04599479,127.69,127.66,7.8354]
[1741723866176,7.8339,127.69,127.66,7.8354]
[1741723866378,258.66,127.7,127.65,0.05848451]
[1741723866772,7.8336,127.69,127.67,7.8345]
[1741723866971,258.66,127.7,127.67,7.8345]
[1741723867171,258.66,127.7,127.65,0.05848451]
[1741723867374,17.90269479,127.69,127.65,0.05848451]
[1741723867978,17.90269479,127.69,127.65,7.89428451]
[1741723868171,17.90269479,127.69,127.65,0.05848451]
[1741723868379,7.8353,127.67,127.65,0.05848451]
[1741723870271,7.8353,127.67,127.65,7.89428451]
[1741723870481,258.66,127.7,127.65,0.05848451]
[1741723870873,258.66,127.7,127.65,7.89448451]
[1741723872281,7.8341,127.69,127.66,7.8352]
[1741723872885,7.8347,127.68,127.65,7.89428451]
[1741723873184,7.8347,127.68,127.65,0.05848451]
[1741723873381,7.8347,127.68,127.66,7.8354]
[1741723873684,7.8339,127.69,127.65,0.05848451]
[1741723874083,258.66,127.7,127.65,0.05848451]
[1741723874282,7.8339,127.69,127.65,0.05848451]
[1741723874682,258.66,127.7,127.66,7.8351]
[1741723874882,7.8348,127.68,127.65,0.05848451]
[1741723875886,7.8348,127.68,127.66,7.8351]
[1741723876478,7.8348,127.68,127.65,0.05848451]
[1741723876685,7.8349,127.67,127.65,7.89428451]
[1741723877286,258.66,127.7,127.65,7.89428451]
[1741723877587,7.8346,127.68,127.66,7.8354]
[1741723877887,258.66,127.7,127.65,0.05848451]
[1741723878484,194.0999,127.74,127.66,17.90269479]
[1741723878679,7.8327,127.71,127.67,33.12]
[1741723878885,7.8327,127.71,127.69,0.06015048]
[1741723879390,7.833,127.7,127.69,0.06015048]
[1741723880389,17.90269479,127.73,127.69,0.06015048]
[1741723881091,7.8329,127.71,127.69,0.06015048]
[1741723881392,17.90269479,127.75,127.7,7.8327]
[1741723881583,7.8318,127.72,127.7,7.8327]
[1741723882793,7.8315,127.73,127.7,7.8327]
[1741723884189,7.8324,127.71,127.69,0.06015048]
[1741723884688,7.8324,127.71,127.69,7.89345048]
[1741723885087,17.90269479,127.75,127.69,0.06015048]
[1741723885882,17.90269479,127.73,127.69,0.06015048]
[1741723886082,17.90269479,127.71,127.69,0.06015048]
[1741723886279,7.833,127.7,127.69,0.06015048]
[1741723888485,7.8327,127.71,127.69,0.06015048]
[1741723888786,17.90269479,127.73,127.69,0.06015048]
[1741723888981,7.8326,127.71,127.69,0.06015048]
[1741723889188,17.90269479,127.73,127.69,0.06015048]
[1741723889387,258.52,127.76,127.72,7.8317]
[1741723889589,7.8303,127.75,127.7,33.1]
[1741723889889,258.52,127.76,127.73,0.05696569]
[1741723890287,276.42269479,127.76,127.73,0.05696569]
[1741723890891,7.8305,127.75,127.73,0.05696569]
[1741723891197,276.42269479,127.76,127.73,0.05696569]
[1741723891582,7.8303,127.75,127.73,0.05696569]
[1741723892295,266.3496,127.76,127.73,0.05696569]
[1741723892496,258.52,127.76,127.73,0.05696569]
[1741723893191,7.83,127.75,127.73,0.05696569]
[1741723893388,258.52,127.76,127.73,0.05696569]
[1741723894796,7.8305,127.74,127.73,0.05696569]
[1741723899699,7.8302,127.75,127.73,7.88816569]
[1741723899897,258.52,127.76,127.73,0.05696569]
[1741723900297,266.3493,127.76,127.74,7.8301]
[1741723900494,266.3493,127.76,127.73,0.05696569]
[1741723900699,258.52,127.76,127.73,0.05696569]
[1741723900997,4.0904,127.79,127.73,0.05696569]
[1741723900998,1.9564,127.79,127.74,33.08]
[1741723901400,7.8286,127.78,127.75,7.8296]
[1741723901601,1.9564,127.79,127.74,33.08]
[1741723901796,1.9564,127.79,127.75,0.05817191]
[1741723902196,7.8282,127.78,127.75,7.88797191]
[1741723902899,7.8279,127.79,127.76,7.829]
[1741723903304,7.8279,127.79,127.75,0.05817191]
[1741723903506,7.8279,127.79,127.77,7.8286]
[1741723903801,7.8272,127.8,127.77,7.8286]
[1741723904006,258.42,127.82,127.78,7.8278]
[1741723904197,258.42,127.82,127.78,40.9078]
[1741723904394,258.42,127.82,127.8,7.8268]
[1741723904597,10.74414213,127.83,127.78,50.98269479]
[1741723904799,7.8257,127.82,127.8,0.05230016]
[1741723905202,10.74414213,127.83,127.8,0.05230016]
[1741723905605,10.74414213,127.83,127.8,7.87880016]
[1741723906295,10.74414213,127.83,127.8,0.05230016]
[1741723906604,17.90269479,127.82,127.8,0.05230016]
[1741723906799,7.8263,127.81,127.8,0.05230016]
[1741723907509,17.90269479,127.82,127.74,33.08]
[1741723907696,17.90269479,127.8,127.74,33.08]
[1741723908097,7.8286,127.78,127.74,33.08]
[1741723908501,0.05450927,127.77,127.75,0.05929671]
[1741723910310,0.05450927,127.77,127.75,7.88879671]
[1741723910906,0.05450927,127.77,127.75,0.05929671]
[1741723911514,7.8293,127.76,127.75,0.05929671]
[1741723912810,7.8323,127.72,127.69,7.8333]
[1741723913111,17.90269479,127.76,127.69,40.8933]
[1741723913315,17.90269479,127.74,127.69,40.8933]
[1741723913509,17.90269479,127.74,127.69,33.06]
[1741723913915,17.90269479,127.74,127.66,6.2085]
[1741723914103,0.05210407,127.73,127.7,0.06030464]
[1741723914409,7.88350407,127.73,127.7,7.89330464]
[1741723915116,7.8318,127.72,127.7,7.89330464]
[1741723915810,7.88350407,127.73,127.7,7.89330464]
[1741723916017,0.05210407,127.73,127.7,0.06030464]
[1741723916517,0.05210407,127.73,127.72,7.8318]
[1741723916911,0.05210407,127.73,127.7,0.06030464]
[1741723917119,0.05210407,127.73,127.72,7.8318]
[1741723918915,0.05210407,127.73,127.71,7.8321]
[1741723920022,7.88370407,127.73,127.7,7.89300464]
[1741723920221,7.88370407,127.73,127.7,0.06030464]
[1741723920423,0.05210407,127.73,127.7,0.06030464]
[1741723921723,7.88330407,127.73,127.71,7.8321]
[1741723921923,7.88330407,127.73,127.7,0.06030464]
[1741723922114,0.05210407,127.73,127.7,0.06030464]
[1741723922320,0.05210407,127.73,127.71,7.8321]
[1741723922521,0.05210407,127.73,127.7,0.06030464]
[1741723923724,0.05210407,127.73,127.72,7.8318]
[1741723924527,0.05210407,127.73,127.71,7.832]
[1741723925429,7.88350407,127.73,127.71,7.832]
[1741723925728,0.05210407,127.73,127.72,7.8318]
[1741723927234,7.88350407,127.73,127.71,7.8321]
[1741723928037,0.05210407,127.73,127.72,7.8318]
[1741723928833,17.90269479,127.78,127.7,0.06030464]
[1741723929134,17.90269479,127.78,127.69,50.96269479]
[1741723929135,7.8295,127.76,127.69,50.96269479]
[1741723929838,262.4191,127.8,127.69,50.96269479]
[1741723929839,7.8289,127.77,127.69,50.96269479]
[1741723930137,7.8289,127.77,127.71,17.96130857]
[1741723930335,0.05572339,127.74,127.72,4.186]
[1741723930538,0.05572339,127.74,127.73,33.04]
[1741723931040,0.05572339,127.74,127.73,40.8712]
[1741723932530,7.8284,127.78,127.73,33.04]
[1741723933136,7.8284,127.78,127.75,7.8294]
[1741723933838,7.8284,127.78,127.75,7.88695253]
[1741723934035,7.8284,127.78,127.76,7.8292]
[1741723936142,278.25099479,127.8,127.75,7.88715253]
[1741723936641,278.25099479,127.8,127.76,7.8292]
[1741723937538,258.32,127.8,127.75,0.05755253]
[1741723938248,269.7518237,127.8,127.76,11.4318237]
[1741723939143,269.7518237,127.8,127.78,7.8277]
[1741723939645,269.7518237,127.8,127.78,7.87715111]
[1741723940339,258.32,127.8,127.79,7.8275]
[1741723941240,11.4318237,127.84,127.79,11.4318237]
[1741723941445,11.4318237,127.84,127.82,7.8256]
[1741723941739,11.4318237,127.85,127.8,11.4318237]
[1741723941940,11.4318237,127.85,127.83,7.8247]
[1741723942944,19.2559237,127.85,127.81,7.88032364]
[1741723943142,11.4318237,127.84,127.81,7.88032364]
[1741723943342,11.4318237,127.84,127.81,0.05432364]
[1741723944439,258.3,127.86,127.81,7.88022364]
[1741723944645,258.3,127.86,127.81,0.05432364]
[1741723945446,7.8247,127.84,127.81,0.05432364]
[1741723945945,7.8247,127.84,127.81,7.88052364]
[1741723946145,7.8256,127.82,127.81,0.05432364]
[1741723946947,25.67594132,127.83,127.81,0.05432364]
[1741723947243,7.8251,127.83,127.81,0.05432364]
[1741723949148,7.8251,127.83,127.81,7.88042364]
[1741723949845,17.85084132,127.85,127.81,0.05432364]
[1741723950048,7.8256,127.82,127.81,0.05432364]
[1741723952549,17.85084132,127.85,127.77,40.8284]
[1741723952753,7.8278,127.79,127.77,40.8284]
[1741723952944,7.8278,127.79,127.77,33.0]
[1741723953146,17.85084132,127.82,127.74,6.3006]
[1741723953444,17.85084132,127.8,127.74,35.0684]
[1741723953847,0.05767215,127.78,127.76,0.05092186]
[1741723954350,0.05767215,127.78,127.76,7.87972186]
[1741723955052,7.88597215,127.78,127.76,0.05092186]
[1741723955445,7.8287,127.77,127.76,0.05092186]
[1741723959153,0.05767215,127.78,127.76,0.05092186]
[1741723959345,0.05767215,127.78,127.76,7.87962186]
[1741723959547,0.05767215,127.78,127.76,0.05092186]
[1741723960341,7.88577215,127.78,127.76,0.05092186]
[1741723960544,0.05767215,127.78,127.76,0.05092186]
[1741723961744,0.05767215,127.78,127.77,7.8287]
[1741723961949,0.05767215,127.78,127.76,33.03092186]
[1741723962448,7.88577215,127.78,127.76,40.86002186]
[1741723963348,0.05767215,127.78,127.77,7.8287]
[1741723965253,0.05767215,127.78,127.76,33.03092186]
[1741723965656,0.05767215,127.78,127.76,0.05092186]
[1741723965957,25.67954132,127.77,127.76,0.05092186]
[1741723966149,17.85084132,127.77,127.7,35.0486]
[1741723966357,11.44517401,127.73,127.68,11.44517401]
[1741723966553,7.8331,127.7,127.68,32.98]
[1741723966753,11.44517401,127.72,127.66,11.44517401]
[1741723967060,11.44517401,127.7,127.66,32.98]
[1741723967253,7.8341,127.69,127.66,40.8151]
[1741723967461,7.89319153,127.69,127.67,0.05853191]
[1741723967656,0.05909153,127.69,127.67,0.05853191]
[1741723968459,0.05909153,127.69,127.68,7.8342]
[1741723973064,258.28,127.74,127.72,7.8314]
[1741723973661,258.28,127.74,127.7,32.98]
[1741723974366,0.05213249,127.73,127.72,7.8312]
[1741723974759,0.05213249,127.73,127.71,0.04950078]
[1741723974956,7.88333249,127.73,127.71,0.04950078]
[1741723975460,7.8318,127.72,127.71,0.04950078]
[1741723977264,7.8333,127.7,127.67,40.8145]
[1741723977462,17.88745188,127.72,127.67,32.98]
[1741723977966,276.16745188,127.74,127.67,32.98]
[1741723978467,7.88881931,127.72,127.69,7.89231039]
[1741723978769,0.05671931,127.72,127.69,7.89231039]
[1741723979159,7.88881931,127.72,127.69,7.89231039]
[1741723979360,0.05671931,127.72,127.7,7.8328]
[1741723980770,0.05671931,127.72,127.69,7.89251039]
[1741723980972,7.88891931,127.72,127.69,7.89251039]
[1741723981167,7.88891931,127.72,127.69,0.05921039]
[1741723981565,0.05671931,127.72,127.69,0.05921039]
[1741723981766,0.05671931,127.72,127.69,7.89261039]
[1741723982267,0.05671931,127.72,127.71,7.8324]
[1741723983272,0.05671931,127.72,127.7,7.833]
[1741723983472,0.05671931,127.72,127.69,0.05921039]
[1741723984074,17.94417119,127.72,127.69,0.05921039]
[1741723984480,17.88745188,127.7,127.64,32.96]
[1741723984877,7.8354,127.67,127.64,32.96]
[1741723985674,0.05558862,127.67,127.65,7.836]
[1741723986678,0.05558862,127.67,127.66,7.8355]
[1741723988068,278.28595188,127.74,127.66,17.88745188]
[1741723988270,260.3985,127.74,127.66,17.88745188]
[1741723988468,7.8316,127.73,127.66,17.88745188]
[1741723988670,7.8316,127.73,127.7,7.8326]
[1741723988976,7.8318,127.73,127.7,7.8326]
[1741723989181,0.05600614,127.73,127.7,7.8869892]
[1741723989679,7.8321,127.72,127.7,0.0543892]
[1741723989875,0.05600614,127.73,127.7,0.0543892]
[1741723990770,0.05600614,127.73,127.7,7.8868892]
[1741723991078,0.05600614,127.73,127.7,0.0543892]
[1741723992082,7.8318,127.72,127.7,0.0543892]
[1741723992582,0.05600614,127.73,127.7,0.0543892]
[1741723992785,0.05600614,127.73,127.71,7.8319]
[1741723993481,7.88720614,127.73,127.71,7.8319]
[1741723994284,7.88720614,127.73,127.7,0.0543892]
[1741723994482,7.88720614,127.73,127.7,7.8869892]
[1741723994982,0.05600614,127.73,127.7,7.8869892]
[1741723995179,7.8318,127.72,127.7,0.0543892]
[1741723995375,0.05600614,127.73,127.7,0.0543892]
[1741723995583,7.88750614,127.73,127.7,7.8867892]
[1741723996282,0.05600614,127.73,127.7,0.0543892]
[1741723996680,0.05600614,127.73,127.72,7.8318]
[1741723997585,0.05600614,127.73,127.72,40.7918]
[1741723999790,279.67690043,127.8,127.72,32.96]
[1741723999993,278.31425188,127.8,127.75,7.8299]
[1741724000393,7.829,127.77,127.74,7.83]
[1741724000694,278.31425188,127.8,127.72,35.0957]
[1741724000891,17.88745188,127.78,127.72,32.96]
[1741724001091,0.0492489,127.77,127.75,0.05844984]
[1741724001285,17.88745188,127.76,127.75,4.984e-05]
[1741724001589,25.71675188,127.76,127.75,4.984e-05]
[1741724002795,7.8293,127.76,127.75,4.984e-05]
[1741724004092,25.71675188,127.76,127.75,4.984e-05]
[1741724004392,7.8293,127.76,127.75,4.984e-05]
[1741724009995,7.8304,127.75,127.7,32.92]
[1741724010195,17.88745188,127.72,127.65,2.1368]
[1741724010497,11.45194812,127.67,127.63,36.901]
[1741724010694,7.8358,127.66,127.63,36.901]
[1741724010892,11.45194812,127.67,127.63,48.35294812]
[1741724011089,11.45194812,127.69,127.63,48.35294812]
[1741724011395,0.05653022,127.66,127.65,11.45194812]
[1741724011599,0.05653022,127.66,127.64,0.05092934]
[1741724011794,0.05653022,127.66,127.65,11.45194812]
[1741724012100,11.45194812,127.71,127.65,11.45194812]
[1741724012299,258.38,127.72,127.65,2.1368]
[1741724012498,266.2122,127.72,127.68,7.8338]
[1741724013099,0.05116852,127.71,127.69,0.05204142]
[1741724014103,17.93939936,127.71,127.69,0.05204142]
[1741724014504,25.77209936,127.71,127.69,0.05204142]
[1741724015592,0.05116852,127.71,127.69,7.88544142]
[1741724015798,0.05116852,127.71,127.69,0.05204142]
[1741724017103,7.88366852,127.71,127.69,0.05204142]
[1741724017497,0.05116852,127.71,127.69,0.05204142]
[1741724018299,7.833,127.7,127.69,0.05204142]
[1741724022703,7.88386852,127.71,127.69,0.05204142]
[1741724022898,0.05116852,127.71,127.69,0.05204142]
[1741724023408,7.833,127.7,127.69,0.05204142]
[1741724026509,25.72123084,127.7,127.69,4.142e-05]
[1741724027011,7.8364,127.65,127.63,36.881]
[1741724027212,17.88823084,127.68,127.63,44.718]
[1741724027507,7.8352,127.67,127.63,36.881]
[1741724027709,17.88823084,127.7,127.63,36.881]
[1741724028014,7.836,127.66,127.65,0.04969041]
[1741724028609,7.89389727,127.68,127.65,0.04969041]
[1741724028809,0.05929727,127.68,127.65,0.04969041]
[1741724029313,7.8354,127.67,127.65,0.04969041]
[1741724029913,0.05929727,127.68,127.65,0.04969041]
[1741724030211,17.94752811,127.68,127.65,0.04969041]
[1741724030606,17.94752811,127.68,127.6,1.9758]
[1741724030905,2.0384,127.69,127.6,34.8758]
[1741724030906,17.88823084,127.66,127.6,34.8758]
[1741724031212,7.8382,127.62,127.6,34.8758]
[1741724031711,17.88823084,127.64,127.59,2.014]
[1741724031913,0.0601083,127.62,127.6,0.05591625]
[1741724032314,7.8385,127.61,127.6,0.05591625]
[1741724033218,7.8983083,127.62,127.6,0.05591625]
[1741724033512,0.0601083,127.62,127.6,0.05591625]
[1741724033909,0.0601083,127.62,127.6,7.89451625]
[1741724034109,0.0601083,127.62,127.6,0.05591625]
[1741724035813,0.0601083,127.62,127.61,32.9]
[1741724036206,0.0601083,127.62,127.61,40.7385]
[1741724037013,0.0601083,127.62,127.61,32.9]
[1741724037619,0.0601083,127.62,127.61,40.7385]
[1741724038519,7.8356,127.66,127.63,7.8368]
[1741724038718,17.88823084,127.68,127.61,34.9143]
[1741724039018,17.88823084,127.68,127.61,32.9]
[1741724039412,7.8378,127.63,127.61,32.9]
[1741724039818,7.8378,127.63,127.61,32.95094582]
[1741724040015,7.89617596,127.63,127.61,32.95094582]
[1741724040218,0.05837596,127.63,127.61,32.95094582]
[1741724040817,17.88823084,127.68,127.61,32.95094582]
[1741724041121,7.8355,127.66,127.62,7.8376]
[1741724041318,17.88823084,127.68,127.61,32.9]
[1741724041518,7.8355,127.66,127.61,32.9]
[1741724041719,7.8355,127.66,127.63,7.837]
[1741724042023,0.03441609,127.65,127.63,7.837]
[1741724042423,0.03441609,127.65,127.64,7.8367]
[1741724042825,0.03441609,127.65,127.62,0.05126123]
[1741724043621,7.8368,127.64,127.62,7.88886123]
[1741724045220,0.03441609,127.65,127.62,7.88886123]
[1741724045425,0.03441609,127.65,127.63,7.8368]
[1741724045815,7.87071609,127.65,127.63,7.8368]
[1741724046324,0.03441609,127.65,127.63,7.8368]
[1741724046521,0.03441609,127.65,127.62,0.05126123]
[1741724046918,35.77646168,127.63,127.5,85.66750862]
[1741724047120,17.88823084,127.58,127.5,85.66750862]
[1741724047418,17.88823084,127.52,127.49,113.50239815]
[1741724047620,17.88823084,127.52,127.47,263.07982086]
[1741724047621,17.88823084,127.5,127.43,37.76772207]
[1741724047817,17.88823084,127.46,127.43,37.76772207]
[1741724048015,7.8508,127.41,127.4,315.69329701]
[1741724048214,7.8508,127.41,127.4,313.20289701]
[1741724048215,58.61903084,127.41,127.4,313.20289701]
[1741724048421,60.97903084,127.41,127.4,270.09429701]
[1741724048614,58.61903084,127.41,127.4,270.09429701]
[1741724049226,25.73903084,127.41,127.4,270.09429701]
[1741724049725,25.73903084,127.41,127.39,312.63278295]
[1741724049726,25.73903084,127.41,127.39,0.05456574]
[1741724050121,17.88823084,127.41,127.39,0.05456574]
[1741724050322,0.0574623,127.42,127.39,0.05456574]
[1741724051828,362.87973956,127.41,127.39,0.05456574]
[1741724053523,182.07039119,127.4,127.37,12.90301161]
[1741724054625,172.31439119,127.4,127.37,41.66524639]
[1741724054825,92.08446334,127.4,127.38,32.9]
[1741724055731,282.44446956,127.39,127.19,190.0]
[1741724055921,282.44446956,127.39,127.13,32.92]
[1741724055922,28.76223478,127.26,127.13,32.92]
[1741724056121,28.76223478,127.23,127.11,28.76223478]
[1741724056329,28.76223478,127.2,127.18,1.916e-05]
[1741724056522,339.8,127.19,127.06,61.68223478]
[1741724056719,339.8,127.19,127.06,28.76223478]
[1741724056924,339.8,127.19,127.09,28.76223478]
[1741724057125,293.9481,127.25,127.12,28.76223478]
[1741724057325,28.76223478,127.21,127.1,32.92]
[1741724057525,28.76223478,127.18,127.1,32.92]
[1741724057825,258.93666683,127.17,127.14,0.05033023]
[1741724058231,258.88,127.17,127.09,32.92]
[1741724058432,258.93401768,127.17,127.14,0.04967442]
[1741724058627,258.88,127.17,127.14,0.04967442]
[1741724058828,258.93657146,127.17,127.1,32.92]
[1741724059033,258.93657146,127.17,127.14,0.05141436]
[1741724060327,0.05657146,127.17,127.14,32.99141436]
[1741724061230,0.05657146,127.17,127.14,0.05141436]
[1741724062629,451.06,127.23,127.15,32.96]
[1741724062830,287.82223478,127.23,127.15,32.96]
[1741724063434,295.68463478,127.23,127.15,32.96]
[1741724063733,0.05810203,127.2,127.18,0.05478921]
[1741724065134,259.06,127.23,127.18,0.05478921]
[1741724065135,241.56088425,127.23,127.18,0.05478921]
[1741724065330,241.56088425,127.23,127.19,32.96]
[1741724065933,32.96,127.28,127.19,32.96]
[1741724066332,0.05297966,127.25,127.22,0.05464379]
[1741724069035,28.75092618,127.26,127.22,0.05464379]
[1741724069435,28.75092618,127.26,127.16,2.1442]
[1741724069834,28.75092618,127.26,127.16,35.1042]
[1741724070041,28.75092618,127.26,127.16,2.1442]
[1741724070337,28.76223478,127.23,127.16,2.1442]
[1741724070529,36.62423478,127.23,127.18,0.05170537]
[1741724070735,0.05504371,127.21,127.18,0.05170537]
[1741724070934,32.96,127.24,127.18,0.05170537]
[1741724071128,40.8215,127.24,127.18,0.05170537]
[1741724071328,32.96,127.24,127.18,0.05170537]
[1741724071731,40.8219,127.24,127.18,0.05170537]
[1741724072131,0.05815963,127.22,127.18,0.05170537]
[1741724072839,0.05815963,127.22,127.19,32.96]
[1741724074134,0.05815963,127.22,127.21,7.8632]
[1741724075138,0.05815963,127.22,127.2,7.8636]
[1741724075540,7.8595,127.27,127.19,32.96]
[1741724075738,63.83753478,127.29,127.21,7.8628]
[1741724075938,63.83753478,127.29,127.19,32.96]
[1741724076137,7.8591,127.28,127.19,32.96]
[1741724076338,63.83753478,127.29,127.22,7.8619]
[1741724076842,0.02116762,127.27,127.24,0.05862677]
[1741724079950,7.88076762,127.27,127.24,0.05862677]
[1741724080350,0.02116762,127.27,127.24,0.05862677]
[1741724080550,28.76223478,127.26,127.24,0.05862677]
[1741724080750,28.76223478,127.26,127.2,7.8634]
[1741724081052,7.8607,127.25,127.2,7.8634]